bitfinex-derivatives/quotes_BTCF0:USTF0_20240830
["timestamp","ask_amount","ask_price","bid_price","bid_amount"]
[1725024651081,0.133842,59627.0,59626.0,0.3608]
[1725024651283,0.720804,59627.0,59626.0,0.3608]
[1725024651492,0.720804,59627.0,59621.0,0.0002515]
[1725024651493,0.083849,59622.0,59621.0,0.0002515]
[1725024651682,0.12,59622.0,59621.0,0.0841015]
[1725024652193,0.12,59622.0,59621.0,0.0002515]
[1725024652783,0.203849,59622.0,59621.0,0.0012515]
[1725024652987,0.12,59622.0,59621.0,0.0012515]
[1725024653291,0.12,59622.0,59621.0,0.0851015]
[1725024654976,0.203849,59622.0,59621.0,0.0012515]
[1725024655183,0.287698,59622.0,59621.0,0.0012515]
[1725024655487,0.287698,59622.0,59601.0,0.3608]
[1725024655488,0.083877,59602.0,59601.0,0.3608]
[1725024655678,0.12,59602.0,59601.0,0.3608]
[1725024656079,0.203877,59602.0,59601.0,0.3608]
[1725024656280,0.12,59602.0,59592.0,0.3608]
[1725024656481,0.083889,59593.0,59592.0,0.3608]
[1725024656696,0.183889,59593.0,59592.0,0.3608]
[1725024656890,0.1,59593.0,59592.0,0.3608]
[1725024657084,0.089,59593.0,59592.0,0.3608]
[1725024657788,0.172889,59593.0,59592.0,0.3608]
[1725024658288,0.089,59593.0,59592.0,0.3608]
[1725024658903,0.175889,59593.0,59592.0,0.3748]
[1725024659693,0.09,59593.0,59592.0,0.3748]
[1725024659895,0.09,59593.0,59592.0,0.3758]
[1725024659896,0.094,59593.0,59592.0,0.3758]
[1725024660083,0.176889,59593.0,59592.0,0.3618]
[1725024660282,0.680289,59593.0,59592.0,0.3618]
[1725024660487,0.180889,59593.0,59592.0,0.001]
[1725024660687,0.180889,59593.0,59592.0,0.002]
[1725024660688,1.049089,59593.0,59592.0,0.002]
[1725024660885,1.649089,59593.0,59592.0,0.002]
[1725024661289,1.732978,59593.0,59592.0,0.002]
[1725024661491,1.732978,59593.0,59564.0,0.3608]
[1725024661492,0.50344,59592.0,59564.0,0.3608]
[1725024661696,0.3608,59576.0,59564.0,0.3608]
[1725024661897,0.083929,59565.0,59564.0,0.3608]
[1725024662092,0.11,59565.0,59564.0,0.3608]
[1725024662287,0.193929,59565.0,59564.0,0.3608]
[1725024663099,0.195929,59565.0,59564.0,0.3878]
[1725024663403,0.195929,59565.0,59564.0,0.027]
[1725024663901,0.194929,59565.0,59564.0,0.013]
[1725024664201,0.195929,59565.0,59564.0,0.025]
[1725024664697,1.060369,59565.0,59564.0,0.025]
[1725024664997,0.556729,59565.0,59564.0,0.025]
[1725024665204,1.060369,59565.0,59564.0,0.025]
[1725024665601,1.060369,59565.0,59564.0,0.023]
[1725024665602,1.144298,59565.0,59564.0,0.023]
[1725024665793,0.083939,59558.0,59541.0,0.3608]
[1725024665992,0.083939,59558.0,59533.0,0.083973]
[1725024665993,0.08396,59543.0,59533.0,0.083973]
[1725024666404,0.083963,59541.0,59533.0,0.083973]
[1725024666601,0.083964,59540.0,59531.0,0.3608]
[1725024666905,0.203964,59540.0,59531.0,0.3608]
[1725024667098,0.12,59540.0,59531.0,0.3608]
[1725024667297,0.106,59540.0,59534.0,0.083972]
[1725024667496,0.106,59540.0,59536.0,0.3608]
[1725024667697,0.106,59540.0,59539.0,0.083965]
[1725024667698,0.063989,59540.0,59539.0,0.083965]
[1725024667896,0.063989,59540.0,59536.0,0.3608]
[1725024668400,0.147953,59540.0,59536.0,0.3608]
[1725024669004,0.148953,59540.0,59536.0,0.3608]
[1725024669504,0.064989,59540.0,59536.0,0.3608]
[1725024670009,0.083967,59538.0,59536.0,0.3608]
[1725024670198,0.213967,59538.0,59536.0,0.3608]
[1725024670703,0.083968,59537.0,59536.0,0.3608]
[1725024670901,0.193968,59537.0,59536.0,0.3608]
[1725024671290,0.11,59537.0,59536.0,0.3608]
[1725024671902,0.193968,59537.0,59536.0,0.3608]
[1725024672105,0.4708,59537.0,59530.0,0.00025193]
[1725024672294,0.083977,59531.0,59530.0,0.00025193]
[1725024672489,0.193977,59531.0,59530.0,0.00025193]
[1725024672708,0.697937,59531.0,59530.0,0.00025193]
[1725024672898,0.696937,59531.0,59530.0,0.00025193]
[1725024673706,0.697937,59531.0,59530.0,0.00125193]
[1725024673894,0.698937,59531.0,59530.0,0.00125193]
[1725024674207,0.111,59531.0,59530.0,0.00025193]
[1725024674503,0.112,59531.0,59530.0,0.00125193]
[1725024675395,0.05317588,59531.0,59530.0,0.00125193]
[1725024676404,0.13715288,59531.0,59530.0,0.00125193]
[1725024677096,0.64111288,59531.0,59530.0,0.00125193]
[1725024677294,0.083993,59520.0,59518.0,0.3608]
[1725024677500,0.203993,59520.0,59518.0,0.3608]
[1725024678005,0.12,59520.0,59518.0,0.3608]
[1725024678193,0.12,59520.0,59513.0,0.3608]
[1725024678395,0.12,59520.0,59517.0,0.083996]
[1725024678600,0.12,59520.0,59518.0,0.083995]
[1725024679102,0.122,59520.0,59518.0,0.083995]
[1725024679604,0.083996,59518.0,59513.0,0.3608]
[1725024679800,0.13,59518.0,59513.0,0.3608]
[1725024679997,0.13,59518.0,59515.0,0.083998]
[1725024680194,0.13,59518.0,59516.0,0.083998]
[1725024680502,0.13,59518.0,59517.0,0.083997]
[1725024680706,0.13,59518.0,59513.0,0.3608]
[1725024681014,0.13,59518.0,59515.0,0.083998]
[1725024681206,0.13,59518.0,59517.0,0.083997]
[1725024681400,0.131,59518.0,59517.0,0.083997]
[1725024681905,0.132,59518.0,59517.0,0.083997]
[1725024682405,0.08156978,59518.0,59517.0,0.083997]
[1725024683210,0.08056978,59518.0,59517.0,0.083997]
[1725024683406,0.08156978,59518.0,59517.0,0.083997]
[1725024683705,0.08056978,59518.0,59517.0,0.083997]
[1725024683910,0.08156978,59518.0,59517.0,0.083997]
[1725024685008,0.08156978,59518.0,59517.0,1.356031]
[1725024685009,0.02273883,59518.0,59517.0,1.356031]
[1725024685214,0.00025193,59522.0,59521.0,0.167982]
[1725024685507,0.05025193,59522.0,59521.0,0.72933657]
[1725024685708,0.05025193,59522.0,59521.0,0.679622]
[1725024685907,0.05025193,59522.0,59521.0,0.444791]
[1725024686106,0.13424093,59522.0,59521.0,0.49458021]
[1725024686306,0.05025193,59522.0,59521.0,1.632782]
[1725024686609,0.05025193,59522.0,59521.0,0.612773]
[1725024686610,0.05125193,59522.0,59521.0,0.612773]
[1725024686907,9.3e-07,59522.0,59521.0,2.076773]
[1725024687107,9.3e-07,59522.0,59521.0,2.20475802]
[1725024687306,0.3608,59555.0,59521.0,2.20475802]
[1725024687307,0.083953,59548.0,59547.0,0.083954]
[1725024687507,0.1,59548.0,59547.0,0.1337903]
[1725024687705,0.1,59548.0,59547.0,0.083954]
[1725024687913,0.1,59548.0,59547.0,1.547754]
[1725024688212,0.1,59548.0,59547.0,0.234794]
[1725024688412,0.1,59548.0,59545.0,0.15084]
[1725024688719,0.197954,59548.0,59545.0,0.06649269]
[1725024689009,0.197954,59548.0,59544.0,0.42729269]
[1725024689314,0.36,59545.0,59544.0,0.42729269]
[1725024689502,0.47,59545.0,59544.0,0.3608]
[1725024689900,0.47,59545.0,59542.0,0.00025193]
[1725024689901,0.08396,59543.0,59542.0,0.00025193]
[1725024690101,0.083968,59537.0,59529.0,0.3608]
[1725024690311,0.083981,59528.0,59527.0,0.06649269]
[1725024690522,0.083981,59528.0,59518.0,0.3608]
[1725024690523,0.193981,59528.0,59525.0,0.06649269]
[1725024691120,0.11,59528.0,59525.0,0.06649269]
[1725024691505,0.083984,59526.0,59524.0,0.06649269]
[1725024691705,0.11,59526.0,59523.0,0.083987]
[1725024692309,0.106,59526.0,59523.0,0.083987]
[1725024692816,0.106,59526.0,59525.0,0.008]
[1725024693203,0.106,59526.0,59525.0,0.091985]
[1725024694202,0.106,59526.0,59525.0,0.14211466]
[1725024694412,0.106,59526.0,59525.0,0.008]
[1725024694605,0.106,59526.0,59524.0,0.3608]
[1725024694811,0.107,59526.0,59524.0,0.444785]
[1725024695318,0.107,59526.0,59525.0,0.091985]
[1725024695511,0.107,59526.0,59525.0,1.28697]
[1725024695715,0.00025193,59532.0,59531.0,0.167954]
[1725024695914,0.083945,59554.0,59534.0,0.083973]
[1725024696216,0.08395,59550.0,59548.0,0.3608]
[1725024696410,0.083951,59549.0,59548.0,0.3608]
[1725024696714,0.203951,59549.0,59548.0,0.3608]
[1725024696924,0.203951,59549.0,59543.0,0.13440282]
[1725024697119,0.203951,59549.0,59543.0,0.00025193]
[1725024697120,0.083958,59544.0,59543.0,0.00025193]
[1725024697330,0.203958,59544.0,59543.0,0.00025193]
[1725024697619,0.12,59544.0,59543.0,0.00025193]
[1725024698818,0.12,59544.0,59543.0,0.08421193]
[1725024699120,0.12,59544.0,59543.0,1.23824282]
[1725024699319,0.12,59544.0,59543.0,0.08421193]
[1725024699514,0.127,59544.0,59543.0,0.15213311]
[1725024700019,0.136,59544.0,59543.0,0.44701193]
[1725024700207,0.145,59544.0,59543.0,0.53197193]
[1725024700408,0.145,59544.0,59543.0,0.44801193]
[1725024700813,0.145,59544.0,59543.0,0.59841193]
[1725024701222,0.228958,59544.0,59543.0,0.36405193]
[1725024701421,0.146,59544.0,59543.0,0.44801193]
[1725024703513,0.146,59544.0,59543.0,0.498122]
[1725024703812,0.128,59544.0,59543.0,0.496122]
[1725024704319,0.128,59544.0,59543.0,0.44601193]
[1725024704506,0.203958,59544.0,59543.0,0.00025193]
[1725024704705,0.204958,59544.0,59543.0,0.08421193]
[1725024704918,0.121,59544.0,59543.0,0.08421193]
[1725024705114,0.121,59544.0,59543.0,0.44501193]
[1725024705416,0.12,59544.0,59543.0,0.44501193]
[1725024705610,0.206958,59544.0,59543.0,0.44501193]
[1725024705812,0.209958,59544.0,59543.0,0.44501193]
[1725024706109,0.209958,59544.0,59543.0,0.00025193]
[1725024706305,1.481714,59544.0,59543.0,1e-08]
[1725024706514,1.87343191,59544.0,59543.0,1e-08]
[1725024706908,2.28947391,59544.0,59543.0,1e-08]
[1725024707103,1.70151591,59544.0,59543.0,1e-08]
[1725024707317,1.70151591,59544.0,59543.0,0.00100001]
[1725024707318,1.074598,59544.0,59543.0,0.00100001]
[1725024707709,1.071598,59544.0,59543.0,0.00100001]
[1725024707910,0.572758,59544.0,59543.0,0.00200001]
[1725024708217,0.128,59544.0,59543.0,0.00200001]
[1725024708609,0.567758,59544.0,59543.0,0.00200001]
[1725024708809,0.577758,59544.0,59543.0,0.00100001]
[1725024709007,0.574758,59544.0,59543.0,0.00100001]
[1725024709213,1.678598,59544.0,59543.0,0.00100001]
[1725024709819,1.678598,59544.0,59528.0,0.3608]
[1725024709820,2.01864,59544.0,59528.0,0.3608]
[1725024710021,0.3608,59539.0,59528.0,0.44478]
[1725024710217,0.4808,59539.0,59528.0,0.44478]
[1725024710416,0.4808,59539.0,59528.0,0.3608]
[1725024710615,0.12,59539.0,59534.0,0.3608]
[1725024710823,0.12,59539.0,59535.0,0.083971]
[1725024711321,0.12,59539.0,59531.0,0.00025193]
[1725024711513,0.12,59539.0,59538.0,0.083967]
[1725024711718,0.12,59539.0,59533.0,0.083973]
[1725024711719,0.4808,59539.0,59533.0,0.083973]
[1725024712115,0.4808,59539.0,59534.0,0.083972]
[1725024712722,0.083968,59537.0,59531.0,0.00025193]
[1725024712920,0.13,59537.0,59531.0,0.00025193]
[1725024713418,0.13,59537.0,59534.0,0.3608]
[1725024713621,0.13,59537.0,59536.0,0.16794]
[1725024713808,0.13,59537.0,59536.0,0.08397]
[1725024714711,0.13,59537.0,59534.0,0.3608]
[1725024714913,0.083971,59536.0,59535.0,0.083971]
[1725024715112,0.203971,59536.0,59535.0,0.083971]
[1725024715311,0.12,59536.0,59535.0,0.083971]
[1725024715511,0.083971,59535.0,59534.0,0.3608]
[1725024715712,0.287942,59535.0,59534.0,0.3608]
[1725024715922,0.16795,59532.0,59531.0,0.00025193]
[1725024716121,0.563975,59532.0,59531.0,0.00325193]
[1725024716722,1.667895,59532.0,59531.0,0.00325193]
[1725024717021,0.562975,59532.0,59531.0,0.00225193]
[1725024717227,0.202975,59532.0,59531.0,0.00225193]
[1725024717720,0.202975,59532.0,59531.0,0.00525193]
[1725024717923,0.12,59532.0,59531.0,0.00525193]
[1725024718124,0.4808,59532.0,59531.0,0.00525193]
[1725024718429,0.564775,59532.0,59531.0,0.00525193]
[1725024718620,0.564775,59532.0,59515.0,0.15036]
[1725024718621,0.083988,59524.0,59509.0,0.3608]
[1725024718823,0.3608,59522.0,59511.0,0.084004]
[1725024719125,0.083996,59518.0,59509.0,0.3608]
[1725024719325,0.083996,59518.0,59513.0,0.084002]
[1725024719326,0.203996,59518.0,59513.0,0.084002]
[1725024720114,0.083999,59516.0,59511.0,0.022]
[1725024720312,0.3608,59515.0,59511.0,0.022]
[1725024720614,0.4908,59515.0,59513.0,0.014]
[1725024720926,0.13,59515.0,59514.0,0.084001]
[1725024722531,0.084001,59514.0,59513.0,0.019]
[1725024722716,0.084001,59514.0,59513.0,0.014]
[1725024722717,0.194001,59514.0,59513.0,0.014]
[1725024722916,0.084003,59513.0,59511.0,0.014]
[1725024723119,0.084004,59512.0,59511.0,0.014]
[1725024723315,0.278008,59512.0,59511.0,0.014]
[1725024723515,0.257904,59512.0,59510.0,0.00016868]
[1725024723814,0.072005,59511.0,59510.0,0.00016868]
[1725024724119,0.199005,59511.0,59510.0,0.00016868]
[1725024724317,1.063925,59511.0,59510.0,0.00016868]
[1725024724518,0.084018,59502.0,59491.0,0.3608]
[1725024724721,0.560018,59502.0,59495.0,0.084026]
[1725024724925,0.49,59502.0,59495.0,0.084026]
[1725024725627,0.082022,59499.0,59495.0,0.084026]
[1725024725820,0.12,59499.0,59491.0,0.3608]
[1725024726131,0.12,59499.0,59498.0,0.084023]
[1725024726325,0.12,59499.0,59498.0,0.168046]
[1725024726629,0.12,59499.0,59498.0,1.335146]
[1725024726925,0.12,59499.0,59498.0,1.419169]
[1725024727629,0.121,59499.0,59498.0,1.419169]
[1725024728037,0.00025193,59504.0,59503.0,0.168032]
[1725024728336,0.00025193,59504.0,59503.0,0.888832]
[1725024728514,0.00025193,59504.0,59503.0,1.032992]
[1725024728713,0.00025193,59504.0,59503.0,0.444816]
[1725024728915,0.03025193,59504.0,59503.0,0.948976]
[1725024729818,0.03025193,59504.0,59503.0,1.032992]
[1725024730324,0.3608,59535.0,59504.0,0.50416]
[1725024730526,0.083974,59534.0,59532.0,0.083975]
[1725024730731,0.083974,59534.0,59528.0,0.3608]
[1725024730732,0.083979,59530.0,59528.0,0.444781]
[1725024730917,0.11,59530.0,59528.0,0.51288]
[1725024731120,0.11,59530.0,59529.0,0.08398]
[1725024731319,0.00025193,59535.0,59528.0,0.51412]
[1725024731519,0.07025193,59535.0,59534.0,0.444773]
[1725024731718,0.07025193,59535.0,59534.0,0.596853]
[1725024731927,0.07025193,59535.0,59534.0,0.444773]
[1725024732127,0.07025193,59535.0,59534.0,0.596853]
[1725024733025,0.07525193,59535.0,59534.0,0.596853]
[1725024733431,0.07525193,59535.0,59534.0,0.444773]
[1725024733819,0.07925193,59535.0,59534.0,0.596853]
[1725024734022,0.07925193,59535.0,59534.0,0.444773]
[1725024734225,0.07925193,59535.0,59534.0,0.596853]
[1725024734435,0.07325193,59535.0,59534.0,1.100773]
[1725024734630,0.07925193,59535.0,59534.0,1.100773]
[1725024735229,0.07925193,59535.0,59534.0,0.596853]
[1725024735525,0.07925193,59535.0,59534.0,0.444773]
[1725024735730,0.07925193,59535.0,59534.0,0.596813]
[1725024736634,0.07925193,59535.0,59534.0,1.100733]
[1725024736835,0.07925193,59535.0,59534.0,1.700733]
[1725024737043,0.05925193,59535.0,59534.0,0.948693]
[1725024737337,0.05925193,59535.0,59534.0,0.596813]
[1725024738138,0.05925193,59535.0,59534.0,1.100733]
[1725024738432,0.00925193,59535.0,59534.0,1.868679]
[1725024738732,0.01025193,59535.0,59534.0,1.868679]
[1725024739636,0.00925193,59535.0,59534.0,1.868679]
[1725024739831,0.00925193,59535.0,59534.0,1.116639]
[1725024740022,0.00925193,59535.0,59534.0,0.764759]
[1725024740223,0.05925193,59535.0,59534.0,0.764759]
[1725024740421,0.05925193,59535.0,59534.0,1.268679]
[1725024741133,0.05925193,59535.0,59534.0,1.868679]
[1725024741332,0.05925193,59535.0,59534.0,0.948693]
[1725024741530,0.05925193,59535.0,59534.0,0.444773]
[1725024742031,0.14322293,59535.0,59534.0,0.444773]
[1725024742633,0.05925193,59535.0,59534.0,0.528746]
[1725024742837,0.05925193,59535.0,59534.0,0.444773]
[1725024743028,0.05925193,59535.0,59534.0,0.528746]
[1725024743223,0.05925193,59535.0,59534.0,0.444773]
[1725024743433,0.05925193,59535.0,59534.0,0.528746]
[1725024743630,0.05925193,59535.0,59534.0,1.548693]
[1725024743826,0.05925193,59535.0,59534.0,0.444773]
[1725024744338,0.05925193,59535.0,59534.0,1.032666]
[1725024744636,0.05925193,59535.0,59534.0,1.716639]
[1725024745229,0.05925193,59535.0,59534.0,1.784706]
[1725024745435,0.05925193,59535.0,59534.0,1.868679]
[1725024746036,0.05925193,59535.0,59534.0,1.784706]
[1725024746533,0.05925193,59535.0,59534.0,1.268679]
[1725024746736,0.05925193,59535.0,59534.0,1.784706]
[1725024746930,0.05925193,59535.0,59534.0,1.868679]
[1725024749054,0.083927,59567.0,59535.0,0.50388]
[1725024749340,0.083927,59567.0,59566.0,0.083927]
[1725024749341,0.12,59567.0,59566.0,0.083927]
[1725024749550,0.12,59567.0,59566.0,0.235967]
[1725024750045,0.083915,59575.0,59566.0,0.235967]
[1725024750046,0.083892,59592.0,59574.0,0.083916]
[1725024750247,0.04802159,59592.0,59591.0,0.3608]
[1725024750543,0.04802159,59592.0,59591.0,0.596732]
[1725024750734,0.04802159,59592.0,59591.0,0.3608]
[1725024750930,0.04802159,59592.0,59591.0,0.596692]
[1725024751537,0.04802159,59592.0,59591.0,0.444692]
[1725024751838,5.9e-07,59592.0,59591.0,1.700132]
[1725024752038,5.9e-07,59592.0,59591.0,1.993984]
[1725024752255,0.00800059,59592.0,59591.0,1.911092]
[1725024753349,5.9e-07,59592.0,59591.0,1.910092]
[1725024753647,5.9e-07,59592.0,59591.0,1.911092]
[1725024753942,5.9e-07,59592.0,59591.0,0.655652]
[1725024754142,5.9e-07,59592.0,59591.0,0.811092]
[1725024754353,0.008,59592.0,59591.0,0.811092]
[1725024754543,0.008,59592.0,59591.0,0.3618]
[1725024755137,0.00025171,59597.0,59591.0,1.46524]
[1725024755339,0.00025171,59597.0,59596.0,0.444685]
[1725024756446,0.00025171,59597.0,59596.0,0.3608]
[1725024757543,0.00025171,59597.0,59596.0,0.444685]
[1725024757737,0.00600071,59597.0,59596.0,1.908085]
[1725024757940,0.00600071,59597.0,59596.0,1.308085]
[1725024758141,0.00600071,59597.0,59596.0,1.908085]
[1725024758342,7.1e-07,59597.0,59596.0,2.00040392]
[1725024758542,7.1e-07,59597.0,59596.0,2.08428892]
[1725024758743,0.0621,59632.0,59623.0,0.083847]
[1725024758934,0.13,59632.0,59627.0,0.3608]
[1725024759134,0.08384,59629.0,59627.0,0.3608]
[1725024759448,0.13,59629.0,59628.0,0.08384]
[1725024760043,0.08384,59628.0,59627.0,0.3608]
[1725024760240,0.20384,59628.0,59627.0,0.3608]
[1725024761247,0.20384,59628.0,59627.0,0.3618]
[1725024761641,0.20384,59628.0,59627.0,0.001]
[1725024761837,0.134,59628.0,59627.0,0.3618]
[1725024762045,0.147,59628.0,59627.0,0.446642]
[1725024762943,0.027,59628.0,59627.0,1.633604]
[1725024763139,0.027,59628.0,59627.0,1.549762]
[1725024763335,0.027,59628.0,59627.0,0.446642]
[1725024763539,0.027,59628.0,59627.0,0.602002]
[1725024764350,0.014,59628.0,59627.0,0.601002]
[1725024764647,0.025,59628.0,59627.0,0.602002]
[1725024765033,0.025,59628.0,59627.0,0.446642]
[1725024765034,0.051,59628.0,59627.0,0.446642]
[1725024765238,0.052,59628.0,59627.0,0.3618]
[1725024765445,0.14684,59628.0,59627.0,0.002]
[1725024765646,0.063,59628.0,59627.0,0.002]
[1725024765848,0.063,59628.0,59627.0,0.085842]
[1725024766049,0.063,59628.0,59627.0,0.588962]
[1725024766248,0.023,59628.0,59627.0,1.272804]
[1725024766942,0.023,59628.0,59627.0,1.28139337]
[1725024767150,0.0595,59651.0,59627.0,0.01058937]
[1725024767347,0.0595,59651.0,59636.0,0.3608]
[1725024767348,0.36,59641.0,59636.0,0.3608]
[1725024767550,0.083834,59633.0,59630.0,0.3608]
[1725024767744,0.103834,59633.0,59630.0,0.3608]
[1725024767942,0.103834,59633.0,59632.0,0.083835]
[1725024767943,0.02,59633.0,59632.0,0.083835]
[1725024768851,0.02,59633.0,59632.0,0.15532]
[1725024769147,0.110833,59633.0,59632.0,0.15532]
[1725024769351,0.083836,59631.0,59630.0,0.001]
[1725024769550,0.203836,59631.0,59630.0,0.15532]
[1725024769851,0.12,59631.0,59630.0,0.599957]
[1725024770260,0.203836,59631.0,59630.0,0.51612]
[1725024770446,0.287672,59631.0,59630.0,0.3608]
[1725024770649,0.203836,59631.0,59630.0,0.51612]
[1725024770845,0.287672,59631.0,59630.0,0.3608]
[1725024771051,0.62308,59631.0,59627.0,0.0002515]
[1725024771255,0.16768,59628.0,59627.0,0.0002515]
[1725024771562,0.28768,59628.0,59627.0,0.0002515]
[1725024771762,0.7908,59628.0,59627.0,0.0002515]
[1725024772154,1.3908,59628.0,59627.0,0.0002515]
[1725024772462,0.083856,59617.0,59616.0,0.51612]
[1725024772654,0.213856,59617.0,59616.0,0.51612]
[1725024772957,0.213856,59617.0,59609.0,0.5718]
[1725024772958,0.083865,59610.0,59609.0,0.5718]
[1725024773162,0.193865,59610.0,59609.0,0.57056]
[1725024773759,0.193865,59610.0,59604.0,0.0002515]
[1725024773760,0.083872,59605.0,59604.0,0.0002515]
[1725024773954,0.638544,59605.0,59604.0,0.0002515]
[1725024774860,2.016992,59605.0,59590.0,0.3608]
[1725024775059,0.083892,59591.0,59590.0,0.3608]
[1725024775261,0.193892,59591.0,59590.0,0.3608]
[1725024775560,0.11,59591.0,59590.0,0.3608]
[1725024775863,0.61344,59591.0,59590.0,0.3608]
[1725024776067,0.193892,59591.0,59590.0,0.3608]
[1725024776357,0.193892,59591.0,59590.0,0.3618]
[1725024776555,0.697332,59591.0,59590.0,0.3618]
[1725024776756,0.697332,59591.0,59590.0,0.3608]
[1725024776757,0.193892,59591.0,59590.0,0.3608]
[1725024776951,0.193892,59591.0,59590.0,0.3618]
[1725024777455,0.697332,59591.0,59590.0,0.3618]
[1725024777859,0.704332,59591.0,59590.0,0.3628]
[1725024778263,0.200892,59591.0,59590.0,0.3628]
[1725024778755,0.201892,59591.0,59590.0,0.3628]
[1725024778955,0.201892,59591.0,59590.0,0.3618]
[1725024779167,0.208892,59591.0,59590.0,0.3628]
[1725024779748,0.712332,59591.0,59590.0,0.002]
[1725024780054,0.083899,59586.0,59585.0,0.00025171]
[1725024780257,0.213899,59586.0,59585.0,0.00025171]
[1725024780562,0.13,59586.0,59585.0,0.00025171]
[1725024780960,0.083905,59582.0,59580.0,0.04950058]
[1725024781171,0.083905,59582.0,59565.0,0.3608]
[1725024781172,0.36,59581.0,59571.0,0.04950058]
[1725024781353,0.36,59581.0,59563.0,0.00124]
[1725024781354,0.16786,59564.0,59563.0,0.00124]
[1725024781661,0.16786,59564.0,59546.0,0.09900116]
[1725024781662,0.083958,59544.0,59537.0,0.06600077]
[1725024781959,0.36,59540.0,59536.0,0.3608]
[1725024782290,0.00025192,59544.0,59536.0,0.3608]
[1725024782558,0.05025192,59544.0,59536.0,0.41070097]
[1725024782754,0.05025192,59544.0,59536.0,0.3608]
[1725024782953,0.05025192,59544.0,59538.0,0.083967]
[1725024783151,0.00025192,59544.0,59541.0,0.3608]
[1725024783364,0.13421092,59544.0,59541.0,0.3608]
[1725024783561,0.05025192,59544.0,59541.0,0.3608]
[1725024783860,0.05025192,59544.0,59542.0,0.08396]
[1725024784259,0.002,59544.0,59542.0,0.08396]
[1725024784661,0.083925,59568.0,59543.0,0.50384]
[1725024784864,0.083927,59567.0,59562.0,0.3608]
[1725024785058,0.213927,59567.0,59562.0,0.3608]
[1725024785261,0.083931,59564.0,59562.0,0.3608]
[1725024785565,0.13,59564.0,59562.0,0.3608]
[1725024786666,0.13,59564.0,59563.0,0.083932]
[1725024787160,0.135,59564.0,59563.0,0.083932]
[1725024787360,0.135,59564.0,59562.0,0.3618]
[1725024787557,0.135,59564.0,59562.0,0.3608]
[1725024787762,0.083932,59563.0,59562.0,0.3618]
[1725024787957,0.213932,59563.0,59562.0,0.3618]
[1725024788455,0.083936,59560.0,59559.0,0.00025192]
[1725024788655,0.203936,59560.0,59559.0,0.00025192]
[1725024788861,0.62368,59560.0,59559.0,0.00025192]
[1725024789066,0.12,59560.0,59559.0,0.00025192]
[1725024789365,0.203936,59560.0,59559.0,0.00025192]
[1725024789561,1.307616,59560.0,59559.0,0.00025192]
[1725024790253,0.203936,59560.0,59559.0,0.00025192]
[1725024790454,0.205936,59560.0,59559.0,0.00125192]
[1725024790758,1.393552,59560.0,59559.0,0.00125192]
[1725024790958,1.317616,59560.0,59559.0,0.00225192]
[1725024791760,0.717616,59560.0,59559.0,0.00225192]
[1725024791963,0.213936,59560.0,59559.0,0.00225192]
[1725024792663,0.13,59560.0,59559.0,0.08618892]
[1725024793558,0.13,59560.0,59559.0,1.18986892]
[1725024793559,0.01,59560.0,59559.0,1.18986892]
[1725024794068,0.01,59560.0,59559.0,0.58986892]
[1725024794264,0.06,59560.0,59559.0,0.58986892]
[1725024794461,0.06,59560.0,59559.0,1.27380592]
[1725024794667,0.00025192,59570.0,59569.0,0.083923]
[1725024794867,0.09025192,59570.0,59569.0,0.604243]
[1725024795761,0.09025192,59570.0,59569.0,0.965043]
[1725024796861,0.444689,59594.0,59569.0,1.98472]
[1725024797058,0.12,59591.0,59586.0,0.3608]
[1725024797260,0.083898,59587.0,59586.0,0.3608]
[1725024797451,0.193898,59587.0,59586.0,0.3608]
[1725024797659,0.193898,59587.0,59579.0,0.3608]
[1725024797862,0.083904,59583.0,59580.0,0.15952]
[1725024798168,0.083904,59583.0,59579.0,0.3608]
[1725024798169,0.11,59583.0,59581.0,0.15952]
[1725024798369,0.11,59583.0,59581.0,0.243426]
[1725024798667,0.11,59583.0,59582.0,0.083905]
[1725024800364,0.111,59583.0,59582.0,0.083905]
[1725024800571,0.112,59583.0,59582.0,0.16781]
[1725024800764,1e-08,59589.0,59588.0,0.167792]
[1725024801065,0.083849,59622.0,59588.0,0.7808]
[1725024801265,0.11,59622.0,59618.0,0.3608]
[1725024801457,0.083853,59619.0,59618.0,0.3608]
[1725024801656,0.193853,59619.0,59618.0,0.3608]
[1725024801859,0.11,59619.0,59618.0,0.3608]
[1725024802071,0.11,59619.0,59618.0,0.805454]
[1725024802271,0.00025169,59624.0,59618.0,0.805454]
[1725024802272,0.00025169,59624.0,59623.0,0.083847]
[1725024802570,0.083811,59649.0,59623.0,0.7808]
[1725024802764,0.07,59649.0,59643.0,0.3608]
[1725024802965,0.07,59649.0,59644.0,0.15948]
[1725024803163,0.083821,59642.0,59627.0,0.3608]
[1725024803461,0.083825,59639.0,59632.0,0.3608]
[1725024803877,0.00016702,59640.0,59632.0,0.3608]
[1725024804059,0.00016702,59640.0,59639.0,0.3608]
[1725024805561,0.00016702,59640.0,59639.0,0.444625]
[1725024806161,0.01116702,59640.0,59639.0,0.3618]
[1725024806370,0.00116702,59640.0,59639.0,0.52124]
[1725024806675,0.00116702,59640.0,59639.0,0.605065]
[1725024807278,0.00016702,59640.0,59639.0,0.604065]
[1725024807464,0.00116702,59640.0,59639.0,0.444625]
[1725024807771,0.00116702,59640.0,59639.0,0.604025]
[1725024808067,0.00116702,59640.0,59639.0,1.79089]
[1725024808267,0.5,59666.0,59639.0,1.79089]
[1725024808268,0.083794,59661.0,59656.0,0.0838]
[1725024808469,0.13,59661.0,59656.0,0.0838]